bitfinex/quotes_SOLUSD_20250821
["timestamp","ask_amount","ask_price","bid_price","bid_amount"]
[1755770005915,4.97176455,185.43,185.41,26.0]
[1755770006123,4.97176455,185.42,185.41,26.0]
[1755770006500,4.97176455,185.42,185.41,0.71]
[1755770007120,4.97176455,185.42,185.41,26.71]
[1755770008629,4.97176455,185.43,185.41,26.71]
[1755770009715,4.97176455,185.42,185.41,26.71]
[1755770010929,41.68,185.44,185.41,26.71]
[1755770010930,4.97176455,185.43,185.41,26.71]
[1755770012732,4.96989457,185.43,185.41,0.71]
[1755770013610,4.96989457,185.43,185.39,26.0]
[1755770013817,4.96989457,185.43,185.4,0.71]
[1755770014206,4.96989457,185.43,185.39,26.0]
[1755770014408,4.96989457,185.43,185.41,0.71]
[1755770022115,4.96989457,185.43,185.39,26.0]
[1755770022332,4.96989457,185.43,185.4,0.71]
[1755770023433,4.96989457,185.42,185.4,0.71]
[1755770023834,42.34,185.44,185.4,0.71]
[1755770024038,46.64989457,185.44,185.41,0.71]
[1755770024220,4.96989457,185.43,185.41,0.71]
[1755770024536,4.96989457,185.42,185.39,26.71]
[1755770024723,4.96989457,185.42,185.4,0.71]
[1755770025146,4.96989457,185.42,185.39,26.0]
[1755770025330,4.96989457,185.4,185.38,26.74]
[1755770025642,4.96989457,185.4,185.38,0.74]
[1755770026348,4.97164345,185.4,185.38,0.74]
[1755770026642,46.63164345,185.41,185.39,26.0]
[1755770026846,44.84165886,185.41,185.39,26.0]
[1755770027339,44.84165886,185.41,185.38,0.74]
[1755770028531,44.84141614,185.41,185.38,0.74]
[1755770028912,41.66,185.41,185.38,0.74]
[1755770029112,0.66,185.4,185.38,0.03]
[1755770029427,0.66,185.4,185.39,26.0]
[1755770029625,46.63127036,185.41,185.39,26.0]
[1755770029828,41.66,185.41,185.39,26.0]
[1755770031422,47.29127036,185.41,185.39,26.0]
[1755770032155,47.29127036,185.41,185.38,0.03]
[1755770032346,47.29127036,185.41,185.39,26.0]
[1755770033040,46.63127036,185.41,185.39,26.0]
[1755770033612,46.63127036,185.41,185.39,26.66]
[1755770034822,46.63127036,185.41,185.39,0.66]
[1755770035544,46.63127036,185.41,185.4,0.66]
[1755770036039,46.63127036,185.41,185.38,0.03]
[1755770036336,41.66,185.41,185.39,0.66]
[1755770036544,41.66,185.41,185.4,0.66]
[1755770037244,41.66,185.41,185.38,0.03]
[1755770037441,41.66,185.41,185.39,0.66]
[1755770038347,46.63127036,185.41,185.38,0.03]
[1755770038728,46.63127036,185.41,185.38,0.69]
[1755770040736,46.63127036,185.41,185.39,0.66]
[1755770041343,46.63127036,185.41,185.38,0.03]
[1755770041529,46.63127036,185.41,185.38,0.69]
[1755770041726,5.68127036,185.4,185.38,0.03]
[1755770042030,4.97127036,185.39,185.38,0.03]
[1755770042534,0.71,185.4,185.38,0.03]
[1755770042742,4.97127036,185.39,185.38,0.03]
[1755770043328,4.97127036,185.4,185.38,0.03]
[1755770044339,5.68127036,185.4,185.38,0.03]
[1755770044533,4.97127036,185.4,185.38,0.03]
[1755770045954,4.97127036,185.39,185.38,0.03]
[1755770046253,4.97127036,185.39,185.38,0.69]
[1755770046456,4.97127036,185.39,185.38,0.03]
[1755770047032,5.68127036,185.39,185.38,0.03]
[1755770047362,19.56118751,185.39,185.38,0.03]
[1755770049032,23.20084125,185.39,185.38,0.03]
[1755770049251,19.56118751,185.39,185.38,0.03]
[1755770050476,19.56589497,185.39,185.38,0.03]
[1755770050631,18.85589497,185.37,185.36,0.03]
[1755770050948,13.87991715,185.36,185.34,0.03]
[1755770051154,3.18480769,185.35,185.34,0.03]
[1755770051451,3.89480769,185.35,185.34,0.03]
[1755770052438,3.89556622,185.35,185.34,0.03]
[1755770052655,5.68667732,185.35,185.34,0.03]
[1755770056551,19.56659447,185.35,185.34,0.03]
[1755770056759,18.85659447,185.32,185.31,0.03]
[1755770057068,60.49659447,185.32,185.31,0.03]
[1755770057241,61.20659447,185.32,185.31,0.03]
[1755770057863,60.49659447,185.32,185.31,0.03]
[1755770058159,61.20659447,185.32,185.31,0.03]
[1755770058357,19.56659447,185.32,185.31,0.03]
[1755770058564,61.20659447,185.32,185.31,0.03]
[1755770059372,60.49659447,185.32,185.31,0.03]
[1755770060262,66.18327179,185.32,185.31,0.03]
[1755770062369,68.99972029,185.32,185.31,0.03]
[1755770064975,13.87991715,185.31,185.29,0.03]
[1755770065157,46.61667732,185.3,185.29,0.03]
[1755770065473,47.32667732,185.3,185.29,0.03]
[1755770066750,61.20659447,185.3,185.29,0.03]
[1755770066953,13.87991715,185.29,185.27,0.03]
[1755770067161,46.61667732,185.28,185.27,0.03]
[1755770067472,47.32667732,185.28,185.27,0.03]
[1755770069265,46.61667732,185.28,185.27,0.03]
[1755770071277,4.97667732,185.28,185.27,0.75]
[1755770071486,46.61667732,185.28,185.27,0.75]
[1755770071654,41.64,185.28,185.27,0.75]
[1755770071971,46.61667732,185.28,185.27,0.75]
[1755770074464,41.64,185.28,185.27,0.75]
[1755770075072,46.61667732,185.28,185.27,0.75]
[1755770083864,41.64,185.28,185.27,0.75]
[1755770084069,46.61667732,185.28,185.27,0.75]
[1755770084266,46.61906712,185.28,185.27,0.75]
[1755770084709,44.82661145,185.28,185.27,0.75]
[1755770087383,45.11093459,185.28,185.27,0.03]
[1755770087689,58.7065286,185.28,185.27,0.03]
[1755770088202,59.4165286,185.28,185.27,0.03]
[1755770089003,59.4165286,185.28,185.25,0.03]
[1755770089297,17.0665286,185.26,185.25,0.03]
[1755770089600,58.7065286,185.26,185.25,0.03]
[1755770089971,59.4165286,185.26,185.25,0.03]
[1755770090282,59.41891417,185.26,185.25,0.03]
[1755770090595,2.16503,185.29,185.25,0.75]
[1755770090596,13.59559401,185.29,185.25,0.75]
[1755770090777,4.97947416,185.26,185.25,0.75]
[1755770090970,46.61947416,185.26,185.25,0.75]
[1755770091171,46.61947416,185.26,185.25,0.03]
[1755770091698,41.64,185.26,185.25,0.75]
[1755770094311,4.97947416,185.31,185.25,5.72947416]
[1755770094493,41.64,185.3,185.26,4.97947416]
[1755770094671,41.64,185.29,185.27,4.97947416]
[1755770094867,41.64,185.29,185.28,0.67]
[1755770097198,41.64,185.29,185.26,0.67]
[1755770097199,46.61947416,185.29,185.26,0.67]
[1755770097506,46.61947416,185.29,185.27,26.67]
[1755770098204,41.64,185.29,185.28,0.67]
[1755770099604,5.03947416,185.33,185.28,5.64947416]
[1755770099914,41.64,185.32,185.29,0.67]
[1755770100292,41.64,185.32,185.3,5.64947416]
[1755770100601,41.64,185.32,185.31,5.64947416]
[1755770101106,46.61947416,185.32,185.29,0.67]
[1755770101305,46.61947416,185.32,185.3,0.67]
[1755770102493,46.61947416,185.32,185.25,0.03]
[1755770102494,46.61947416,185.32,185.26,30.97947416]
[1755770102698,46.61947416,185.32,185.3,26.67]
[1755770103907,46.61947416,185.32,185.26,0.67]
[1755770103908,5.65947416,185.31,185.26,0.67]
[1755770104104,4.97947416,185.29,185.26,0.67]
[1755770104307,41.62,185.28,185.26,0.67]
[1755770104514,46.59947416,185.28,185.26,0.67]
[1755770104708,46.59947416,185.28,185.26,26.67]
[1755770105487,46.59947416,185.28,185.26,0.67]
[1755770105909,46.59947416,185.28,185.26,26.67]
[1755770107617,41.62,185.28,185.25,0.03]
[1755770107917,4.97947416,185.26,185.25,0.03]
[1755770108112,46.59947416,185.26,185.25,0.03]
[1755770109317,41.62,185.26,185.25,0.03]
[1755770110915,47.5637973,185.26,185.25,0.03]
[1755770111595,61.15939131,185.26,185.25,0.03]
[1755770111890,56.17991715,185.26,185.25,0.03]
[1755770112095,61.15939131,185.26,185.25,0.03]
[1755770112929,64.79611631,185.26,185.25,0.03]
[1755770113298,59.81664215,185.26,185.25,0.03]
[1755770113500,64.79611631,185.26,185.25,0.03]
[1755770113928,59.81664215,185.26,185.25,0.03]
[1755770114218,64.79611631,185.26,185.25,0.03]
[1755770114422,60.47939131,185.26,185.25,0.03]
[1755770114748,46.74163573,185.26,185.25,0.03]
[1755770115093,5.2637973,185.26,185.25,0.03]
[1755770115306,46.8837973,185.26,185.25,0.03]
[1755770118418,47.5637973,185.26,185.25,0.03]
[1755770120319,61.15939131,185.26,185.25,0.03]
[1755770121305,63.97670959,185.26,185.25,0.03]
[1755770122508,63.29670959,185.26,185.25,0.03]
[1755770122710,46.59947416,185.26,185.25,0.7]
[1755770123017,41.62,185.26,185.25,0.7]
[1755770123811,41.62,185.27,185.25,0.7]
[1755770124009,41.62,185.26,185.25,0.7]
[1755770124423,41.62,185.27,185.25,0.7]
[1755770124620,46.59947416,185.27,185.25,0.7]
[1755770125010,46.59947416,185.27,185.25,0.03]
[1755770125215,46.59947416,185.27,185.26,0.68]
[1755770125416,41.62,185.27,185.26,0.68]
[1755770125642,46.59947416,185.27,185.26,0.68]
[1755770125812,46.65947416,185.27,185.26,0.68]
[1755770126710,46.65947416,185.27,185.25,0.03]
[1755770127032,5.2637973,185.26,185.25,0.03]
[1755770128439,4.97947416,185.26,185.25,0.71]
[1755770128606,46.59947416,185.26,185.25,0.71]
[1755770130716,41.62,185.26,185.25,0.71]
[1755770131432,46.59947416,185.26,185.25,0.71]
[1755770137363,41.62,185.26,185.25,0.71]
[1755770137649,46.59947416,185.26,185.25,0.71]
[1755770140834,46.59947416,185.26,185.25,0.03]
[1755770141133,46.59947416,185.26,185.25,0.71]
[1755770141445,41.62,185.26,185.25,0.71]
[1755770143642,46.59947416,185.26,185.25,0.71]
[1755770144855,41.62,185.26,185.25,0.71]
[1755770148231,0.06,185.27,185.25,0.71]
[1755770148437,0.06,185.27,185.26,4.97947416]
[1755770149055,0.06,185.27,185.26,0.68]
[1755770153064,0.06,185.27,185.25,0.03]
[1755770153281,4.97947416,185.26,185.25,0.03]
[1755770154859,4.97947416,185.26,185.25,0.71]
[1755770155064,4.97947416,185.26,185.25,0.03]
[1755770155260,4.97947416,185.26,185.25,0.71]
[1755770156256,46.59947416,185.26,185.25,0.71]
[1755770156455,41.62,185.26,185.25,26.71]
[1755770156961,41.62,185.26,185.25,26.03]
[1755770157976,46.59947416,185.26,185.25,0.03]
[1755770160441,41.62,185.26,185.25,0.03]
[1755770160647,41.62,185.26,185.25,0.71]
[1755770160849,0.06,185.27,185.25,5.68947416]
[1755770161041,41.66,185.27,185.25,5.68947416]
[1755770161243,41.66,185.27,185.26,0.68]
[1755770161444,41.66,185.27,185.25,0.03]
[1755770161640,41.66,185.27,185.26,0.68]
[1755770162648,0.06,185.27,185.26,0.68]
[1755770163049,0.06,185.27,185.25,0.03]
[1755770163553,0.06,185.27,185.25,0.71]
[1755770164460,0.06,185.27,185.26,0.68]
[1755770164859,0.06,185.27,185.25,0.71]
[1755770165471,0.06,185.27,185.26,0.68]
[1755770179071,0.06,185.27,185.26,5.65947416]
[1755770182265,0.06,185.27,185.26,31.65947416]
[1755770182463,0.06,185.27,185.26,5.65947416]
[1755770182769,0.06,185.27,185.26,45.53939131]
[1755770183093,0.06,185.27,185.26,19.53939131]
[1755770189184,0.06,185.27,185.26,24.93721059]
[1755770194284,0.06,185.27,185.26,104.73721059]
[1755770196692,0.06,185.27,185.26,114.73721059]
[1755770196995,0.06,185.29,185.28,23.87991715]
[1755770197188,0.06,185.29,185.28,70.43939131]
[1755770197372,0.06,185.29,185.28,71.15939131]
[1755770198301,0.06,185.29,185.28,66.55662792]
[1755770198512,0.06,185.29,185.28,76.55662792]
[1755770199815,0.06,185.29,185.28,81.53610208]
[1755770200096,0.06,185.29,185.28,161.87582574]
[1755770200393,0.06,185.31,185.3,13.87991715]
[1755770200595,0.06,185.31,185.3,145.21886547]
[1755770200797,0.06,185.31,185.3,145.93886547]
[1755770200986,0.06,185.31,185.3,155.93886547]
[1755770201392,0.06,185.31,185.3,158.10143647]
[1755770201794,0.06,185.31,185.3,145.93886547]
[1755770203206,0.06,185.31,185.3,151.33551954]
[1755770203876,0.06,185.31,185.3,161.33551954]
[1755770205078,0.06,185.31,185.3,151.33551954]
[1755770205386,0.06,185.31,185.3,163.49809054]
[1755770206289,0.06,185.31,185.3,163.47809054]
[1755770206790,0.06,185.31,185.3,148.08143647]
[1755770207106,0.06,185.31,185.3,145.91886547]
[1755770207318,0.06,185.31,185.3,126.33947416]
[1755770208517,0.06,185.31,185.3,127.05947416]
[1755770210135,0.06,185.31,185.3,126.33947416]
[1755770211938,0.06,185.31,185.3,46.53947416]
[1755770214628,0.06,185.31,185.3,72.53947416]
[1755770216021,0.06,185.31,185.3,73.22947416]
[1755770216938,0.06,185.31,185.3,97.48551954]
[1755770217933,0.06,185.31,185.3,179.44809054]
[1755770219427,0.06,185.31,185.3,174.46861638]
[1755770219859,0.06,185.31,185.3,179.44809054]
[1755770221536,0.06,185.31,185.3,110.77947416]
[1755770221737,0.72,185.31,185.3,152.31947416]
[1755770222337,0.06,185.31,185.3,152.31947416]
[1755770223751,0.06,185.31,185.3,72.51947416]
[1755770224236,0.06,185.31,185.3,30.97947416]
[1755770224442,0.72,185.31,185.3,72.51947416]
[1755770224737,0.06,185.31,185.3,72.51947416]
[1755770225724,0.06,185.31,185.3,4.97947416]
[1755770226043,0.72,185.31,185.3,46.51947416]
[1755770227237,0.72,185.31,185.3,67.54]
[1755770227636,0.72,185.31,185.3,72.51947416]
[1755770228135,0.06,185.31,185.3,4.97947416]
[1755770228440,0.72,185.31,185.3,46.51947416]
[1755770229738,0.06,185.31,185.3,46.51947416]
[1755770230045,0.06,185.31,185.3,47.20947416]
[1755770237452,0.06,185.31,185.3,151.26551954]
[1755770237823,0.06,185.31,185.3,166.53828417]
[1755770238226,0.06,185.31,185.3,168.70073917]
[1755770238427,0.06,185.31,185.3,168.68262469]
[1755770238849,0.06,185.31,185.3,165.10394327]
[1755770240345,0.06,185.31,185.3,165.10395775]
[1755770240732,0.06,185.31,185.3,168.68325017]
[1755770242450,0.06,185.31,185.3,158.68325017]
[1755770242638,0.06,185.31,185.3,168.68325017]
[1755770243963,0.06,185.33,185.32,23.59559401]
[1755770244128,0.06,185.33,185.32,70.10632367]
[1755770244328,0.06,185.33,185.32,70.81632367]
[1755770244756,0.06,185.33,185.32,72.97866167]
[1755770246359,0.06,185.33,185.32,78.37473332]
[1755770246672,0.06,185.33,185.32,67.82639728]
[1755770246848,0.06,185.33,185.32,7.13306766]
[1755770247034,0.06,185.33,185.32,48.67306766]
[1755770248762,0.06,185.33,185.32,46.51072966]
[1755770252354,0.06,185.33,185.32,46.49072966]
[1755770252660,0.06,185.33,185.31,5.35042501]
[1755770252844,0.71,185.33,185.32,67.52]
[1755770253474,0.71,185.33,185.32,72.49072966]
[1755770255670,0.71,185.33,185.32,67.52]
[1755770257773,0.71,185.33,185.32,72.49072966]
[1755770258151,0.06,185.33,185.32,72.49072966]
[1755770260354,0.06,185.33,185.32,72.49304653]
[1755770260644,0.06,185.33,185.32,70.70275408]
[1755770263180,0.06,185.33,185.32,29.18275408]
[1755770263349,0.06,185.33,185.3,0.03]
[1755770263350,0.71,185.33,185.3,0.03]
[1755770263755,3.18275408,185.31,185.3,0.03]
[1755770264371,3.73275408,185.31,185.3,0.03]
[1755770266471,3.73558002,185.31,185.3,0.03]
[1755770266773,5.52745594,185.31,185.3,0.03]
[1755770280186,24.38482903,185.31,185.3,0.03]
[1755770287180,65.92482903,185.31,185.3,0.03]
[1755770287689,63.63174925,185.31,185.3,0.03]
[1755770288490,68.2288483,185.31,185.3,0.03]
[1755770290370,13.87991715,185.3,185.29,0.03]
[1755770290586,16.88170338,185.3,185.29,0.03]
[1755770291972,16.33170338,185.3,185.29,0.03]
[1755770292276,16.88170338,185.3,185.29,0.03]
[1755770293071,16.33170338,185.3,185.29,0.03]
[1755770293276,16.33170338,185.3,185.29,0.75]
[1755770293777,16.33170338,185.3,185.29,0.03]
[1755770294496,17.71089857,185.3,185.29,0.03]
[1755770294997,41.54,185.31,185.29,0.75]
[1755770295193,0.06,185.32,185.29,0.75]
[1755770295377,41.54,185.31,185.29,0.75]
[1755770295691,45.37098142,185.31,185.29,0.75]
[1755770298900,0.06,185.32,185.29,0.75]
[1755770299081,0.06,185.32,185.29,4.58098142]
[1755770299470,0.06,185.32,185.3,0.72]
[1755770300572,0.06,185.32,185.3,4.55098142]
[1755770301090,0.06,185.32,185.31,4.55098142]
[1755770301903,0.06,185.32,185.31,0.72]
[1755770302075,0.06,185.32,185.31,4.55098142]
[1755770302696,0.06,185.32,185.31,6.71402042]
[1755770305092,0.06,185.32,185.31,28.883039]
[1755770305276,0.06,185.32,185.31,26.72]
[1755770306798,3.89098142,185.32,185.29,0.72]
[1755770306997,3.89098142,185.32,185.3,0.69]
[1755770307510,27.92176448,185.31,185.3,26.69]
[1755770309275,27.92176448,185.31,185.3,26.0]
[1755770309479,27.92176448,185.31,185.3,26.69]
[1755770313606,27.92176448,185.31,185.3,26.0]
[1755770313994,27.92176448,185.31,185.3,26.69]
[1755770314805,27.92176448,185.31,185.3,26.0]
[1755770315116,32.3027459,185.31,185.29,0.03]
[1755770315307,3.83098142,185.3,185.29,0.03]
[1755770318321,3.83098142,185.3,185.29,0.72]
[1755770323528,31.7527459,185.31,185.29,0.72]
[1755770327020,3.83098142,185.3,185.29,0.72]
[1755770328922,27.92176448,185.31,185.29,0.72]
[1755770329126,3.83098142,185.3,185.29,0.72]
[1755770329293,3.83098142,185.3,185.29,0.03]
[1755770331126,45.92098142,185.3,185.29,0.03]
[1755770331501,45.37098142,185.3,185.29,0.03]
[1755770333510,41.54,185.3,185.29,0.03]
[1755770333824,45.37098142,185.3,185.29,0.03]
[1755770339520,45.92098142,185.3,185.29,0.03]
[1755770340019,45.37098142,185.3,185.29,0.03]
[1755770340409,41.54,185.3,185.29,0.73]
[1755770340821,69.44176448,185.31,185.29,0.73]
[1755770341137,27.98176448,185.31,185.29,0.73]
[1755770341323,30.43295448,185.31,185.29,0.73]
[1755770341520,30.43295448,185.31,185.3,0.7]
[1755770346023,30.43295448,185.31,185.29,0.73]
[1755770346217,2.45119,185.3,185.29,0.73]
[1755770346932,27.98176448,185.31,185.29,0.73]
[1755770347130,2.45119,185.3,185.29,0.73]
[1755770352336,27.98176448,185.31,185.29,0.73]
[1755770352548,2.45119,185.3,185.29,0.73]
[1755770353250,30.43295448,185.31,185.29,0.73]
[1755770356731,27.92176448,185.3,185.29,0.73]
[1755770357053,27.92176448,185.3,185.29,0.03]
[1755770357661,27.92176448,185.3,185.29,0.73]
[1755770361065,27.92176448,185.3,185.29,0.73]
[1755770362552,27.92176448,185.3,185.29,0.03]
[1755770362862,27.92176448,185.3,185.29,0.73]
[1755770363254,30.37295448,185.3,185.29,0.73]
[1755770363465,27.92176448,185.3,185.29,0.73]
[1755770364153,27.92176448,185.3,185.29,3.18119]
[1755770364667,27.92176448,185.3,185.29,32.36238]
[1755770366345,27.92176448,185.3,185.29,29.91119]
[1755770366545,27.92176448,185.3,185.29,32.36238]
[1755770377883,28.47176448,185.3,185.29,3.21119]
[1755770378175,28.47176448,185.3,185.29,0.03]
[1755770381680,86.30287163,185.3,185.29,0.03]
[1755770382087,89.94629011,185.3,185.29,0.03]
[1755770383376,86.30287163,185.3,185.29,0.03]
[1755770384473,89.94351845,185.3,185.29,0.03]
[1755770384671,89.94351845,185.3,185.28,0.03]
[1755770385007,6.64183682,185.29,185.28,0.03]
[1755770388363,3.00119,185.29,185.28,0.03]
[1755770394566,160.42176448,185.3,185.28,0.03]
[1755770394879,43.95119,185.29,185.28,0.7]
[1755770395089,43.95119,185.29,185.28,0.03]
[1755770396398,43.95119,185.29,185.28,0.7]
[1755770396893,43.95119,185.29,185.28,0.03]
[1755770400015,27.92176448,185.3,185.28,0.7]
[1755770400193,41.5,185.29,185.28,0.7]
[1755770400494,57.54678401,185.29,185.28,0.03]
[1755770400803,57.83110715,185.29,185.28,0.03]
[1755770401169,2.45119,185.29,185.28,0.7]
[1755770401371,43.95119,185.29,185.28,0.7]
[1755770401584,57.83110715,185.29,185.28,0.03]
[1755770401785,58.38110715,185.29,185.28,0.03]
[1755770402981,13.87991715,185.28,185.26,0.03]
[1755770403185,57.83110715,185.27,185.25,0.03]
[1755770403384,58.38110715,185.27,185.25,0.03]
[1755770403577,2.45119,185.26,185.25,0.03]
[1755770403781,16.88110715,185.26,185.25,0.03]
[1755770404675,57.83110715,185.26,185.25,0.03]
[1755770405302,58.38110715,185.26,185.25,0.03]
[1755770405887,16.33110715,185.26,185.25,0.03]
[1755770406078,57.83110715,185.26,185.25,0.7]
[1755770406275,57.83110715,185.26,185.25,0.03]
[1755770406890,16.33110715,185.26,185.25,0.03]
[1755770407098,57.83110715,185.26,185.25,0.03]
[1755770407513,58.38110715,185.26,185.25,0.03]
[1755770407904,57.83110715,185.26,185.25,0.03]
[1755770408884,58.38110715,185.26,185.25,0.03]
[1755770409981,13.87991715,185.25,185.24,0.03]
[1755770410183,13.87991715,185.25,185.15,0.67]
[1755770410184,13.87991715,185.21,185.15,0.67]
[1755770410386,2.45119,185.16,185.15,0.67]
[1755770410595,43.95119,185.16,185.15,0.67]
[1755770410990,41.5,185.16,185.15,0.67]
[1755770412294,45.33606053,185.16,185.15,0.67]
[1755770413197,13.87991715,185.15,185.12,0.67]
[1755770413395,3.83606053,185.13,185.12,0.67]
[1755770413613,41.5,185.14,185.1,0.1]
[1755770413827,55.37991715,185.14,185.13,0.67]
[1755770414818,55.37991715,185.14,185.11,0.67]
[1755770415119,3.83606053,185.12,185.11,0.67]
[1755770415330,45.41606053,185.12,185.1,0.1]
[1755770415509,3.83606053,185.11,185.1,0.1]
[1755770415894,3.83606053,185.11,185.1,0.77]
[1755770416099,3.83606053,185.11,185.1,0.1]
[1755770416998,17.71597768,185.11,185.1,0.1]
[1755770417595,132.5,185.16,185.1,0.77]
[1755770417917,3.83606053,185.13,185.1,0.77]
[1755770418120,41.62,185.12,185.11,0.67]
[1755770418315,45.45606053,185.12,185.1,0.1]
[1755770418621,3.83606053,185.11,185.1,0.1]
[1755770418920,17.71597768,185.11,185.1,0.1]
[1755770419995,17.71597768,185.11,185.1,0.77]
[1755770419996,41.66,185.11,185.1,0.77]
[1755770420297,41.68,185.11,185.1,0.77]
[1755770421537,45.51606053,185.11,185.1,0.1]
[1755770421899,59.39597768,185.11,185.1,0.1]
[1755770422551,59.94597768,185.11,185.1,0.1]
[1755770425540,13.87991715,185.11,185.1,0.1]
[1755770425741,13.87991715,185.11,185.1,0.79]
[1755770425742,55.57991715,185.11,185.1,0.79]
[1755770426112,59.41597768,185.11,185.1,0.1]
[1755770426524,41.7,185.11,185.1,0.79]
[1755770426713,136.33606053,185.13,185.1,0.79]
[1755770426911,41.7,185.12,185.1,4.62606053]
[1755770427144,4.24251096,185.21,185.11,3.83606053]
[1755770427145,3.83606053,185.17,185.11,3.83606053]
[1755770427338,41.74,185.16,185.12,0.69]
[1755770427555,3.83606053,185.15,185.12,0.69]
[1755770427827,41.74,185.14,185.12,0.69]
[1755770428027,41.74,185.14,185.1,3.93606053]
[1755770428209,41.74,185.14,185.13,0.69]
[1755770431937,2.8182419,185.19,185.13,4.52606053]
[1755770432110,0.55,185.24,185.15,3.83606053]
[1755770432111,41.74,185.18,185.15,3.83606053]
[1755770432308,41.74,185.17,185.16,0.69]
[1755770435850,13.87991715,185.21,185.16,0.69]
[1755770436056,3.83606053,185.19,185.17,0.69]
[1755770436233,41.7,185.18,185.17,0.69]
[1755770436846,41.7,185.18,185.15,26.69]
[1755770437053,41.7,185.18,185.16,0.69]
[1755770437960,41.7,185.18,185.14,3.83606053]
[1755770438261,41.7,185.18,185.17,0.69]
[1755770439057,45.53606053,185.18,185.15,26.69]
[1755770439256,45.53606053,185.18,185.16,26.69]
[1755770439463,45.53606053,185.18,185.16,0.69]
[1755770440954,45.53606053,185.18,185.14,26.0]
[1755770441142,45.53606053,185.18,185.17,0.69]
[1755770441537,45.53606053,185.18,185.15,0.69]
[1755770441754,45.53606053,185.18,185.16,0.69]
[1755770441956,41.7,185.18,185.16,0.69]
[1755770443956,41.7,185.18,185.17,0.69]
[1755770444326,41.7,185.18,185.14,29.83606053]
[1755770444327,41.7,185.18,185.15,0.69]
[1755770444531,41.7,185.18,185.16,0.69]
[1755770445165,45.53606053,185.18,185.16,0.69]
[1755770445456,3.83606053,185.17,185.14,0.69]
[1755770445630,41.66,185.16,185.14,0.69]
[1755770446030,41.66,185.16,185.14,26.69]
[1755770446260,41.66,185.16,185.15,0.69]
[1755770446460,41.66,185.16,185.14,26.0]
[1755770446645,41.66,185.16,185.14,0.69]
[1755770447050,41.66,185.16,185.15,0.69]
[1755770448068,41.66,185.16,185.13,26.03]
[1755770448363,45.49606053,185.16,185.13,26.72]
[1755770448553,45.49606053,185.16,185.13,0.72]
[1755770449554,45.49606053,185.16,185.13,0.03]
[1755770449767,0.83432314,185.21,185.14,4.52606053]
[1755770449934,0.83432314,185.21,185.15,0.69]
[1755770449935,41.66,185.2,185.15,0.69]
[1755770450140,0.55,185.19,185.15,0.69]
[1755770450342,45.47606053,185.18,185.15,0.69]
[1755770450545,3.83606053,185.17,185.15,0.69]
[1755770450740,41.7,185.16,185.15,0.69]
[1755770452853,41.7,185.16,185.13,4.55606053]
[1755770453055,41.7,185.16,185.13,3.86606053]
[1755770453262,41.7,185.16,185.14,0.71]
[1755770453440,41.7,185.16,185.15,0.71]
[1755770455659,41.7,185.16,185.15,4.54606053]
[1755770456655,41.68,185.17,185.15,4.54606053]
[1755770456967,41.68,185.17,185.16,0.71]
[1755770458063,3.83606053,185.18,185.16,0.71]